Cogmind - Beta 15 X1 @@@ ROGUE MODE // 2024.11.17 @ 03:41:46 Player: H3-RMN Result: Destroyed by P-60 Hacker with Shock Rifle Performance ------------- Evolutions (0) 0 Regions Visited (4) 800 Robots Destroyed (20) 100 Value Destroyed (590) 590 Prototype IDs (0) 0 Alien Tech Used (0) 0 Bonus (0) 0 TOTAL SCORE: 1490 Bonus ------- None Cogmind --------- Core Integrity 0/250 Matter 240/300 Energy 165/200 System Corruption 0% Temperature Cool (95) Movement Treading (480) Ox4 Location -8/Recycling Parts ------- > --- POWER (1) -------- Subdweller Power Source > --- PROPULSION (2) --- Light Treads Subdweller Monowheel > --- UTILITY (2) ------ Huge Storage Unit Structural Scanner > --- WEAPON (2) ------- Subdweller Beam Cannon Subdweller Machine Gun > --- INVENTORY (25) --- Subdweller Power Source Subdweller Power Source Wheel Subdweller Monowheel Subdweller Monowheel EM Pulse Gun Subdweller Laser Subdweller Beam Cannon Subdweller Machine Gun Subdweller Shrapnel Launcher SUBCON Basin (Full) Peak State ------------ > --- POWER ------------ Subdweller Power Source > --- PROPULSION ------- Light Treads Subdweller Monowheel > --- UTILITY ---------- Huge Storage Unit Structural Scanner > --- WEAPON ----------- Subdweller Beam Cannon Battle Cannon > --- INVENTORY -------- Subdweller Power Source Subdweller Power Source Light Treads Wheel Subdweller Monowheel EM Pulse Gun Subdweller Beam Cannon Subdweller Machine Gun Subdweller Machine Gun Subdweller Shrapnel Launcher SUBCON Basin [Rating: 30] Favorites ----------- Power Subdweller Power Source Engine Subdweller Power Source Propulsion Light Treads Treads Light Treads Wheel Subdweller Monowheel Utility Structural Scanner Device Structural Scanner Storage Huge Storage Unit Weapon Subdweller Beam Cannon Energy Gun Medium Laser Energy Cannon Subdweller Beam Cannon Ballistic Gun Light Assault Rifle Ballistic Cannon Battle Cannon Launcher Subdweller Shrapnel Launcher Build | -11 -10 -10 -10 -8 ------- Run | Yrd Mat Min Sub Rec Slots Evolved . | . . . . . Power . | . . . . . Propulsion . | . . . . . Utility . | . . . . . Weapon . | . . . . . Parts Attached 19 | 6 2 . 11 . Power 3 | 1 . . 2 . Engine 3 | 1 . . 2 . Core . | . . . . . Reactor . | . . . . . Propulsion 7 | 2 . . 5 . Treads 2 | . . . 2 . Leg . | . . . . . Wheel 5 | 2 . . 3 . Hover . | . . . . . Flight . | . . . . . Utility 3 | 1 2 . . . Device 1 | . 1 . . . Storage 2 | 1 1 . . . Processor . | . . . . . Hackware . | . . . . . Protection . | . . . . . Artifact . | . . . . . Weapon 6 | 2 . . 4 . Energy Gun 1 | 1 . . . . Energy Cannon 1 | . . . 1 . Ballistic Gun 2 | 1 . . 1 . Ballistic Cannon 1 | . . . 1 . Launcher 1 | . . . 1 . Special Weapon . | . . . . . Impact Weapon . | . . . . . Slashing Weapon . | . . . . . Piercing Weapon . | . . . . . Special Melee Weapon . | . . . . . Unidentified Prototypes . | . . . . . Parts Lost 1 | . . . 1 . Power . | . . . . . Propulsion . | . . . . . Utility . | . . . . . Weapon 1 | . . . 1 . Highest Loss Streak 1 | . . . 1 . To Critical Strikes . | . . . . . Average Backups 11 | 2 6 7 13 10 Power 2 | . 1 1 2 2 Propulsion 3 | 1 2 3 3 3 Utility . | . . 1 . . Weapon 5 | . 1 2 6 5 Tool/Special . | . . . . . Unused Backups 9 | . . . 4 5 Power 2 | . . . 1 1 Propulsion 2 | . . . 1 1 Utility . | . . . . . Weapon 5 | . . . 2 3 Tool/Special . | . . . . . Average Slot Usage (%) 99 | . 97 100 99 100 Engine 14 | . 14 14 14 14 Treads 9 | . . . 11 14 Wheel 18 | . 28 28 16 14 Device 13 | . 12 14 14 14 Storage 14 | . 14 14 14 14 Energy Gun 3 | . 14 14 . . Energy Cannon 10 | . . . 12 14 Ballistic Gun 3 | . 14 14 1 14 Ballistic Cannon 10 | . . . 12 . Peak Build Rating 30 | 6 7 7 30 30 Average Rating 15 | 4 6 7 16 30 On Entrance 10 | . 6 7 7 30 Naked Turns . | . . . . . Heaviest Build 98 | 11 87 87 98 . Greatest Support 26 | 26 26 26 26 . Greatest Overweight (x) 9 | . 3 3 9 . Average Overweight (x) 3 | . 1 3 4 . Largest Inventory Capacity 25 | 8 25 25 25 25 Average Capacity 23 | 6 19 25 25 25 Most Carried 25 | 4 7 7 25 25 Average Carried 15 | 2 6 7 17 25 Final Capacity 25 | 8 25 25 25 25 Final Carried 25 | 4 7 7 25 25 Class Distribution -------------------- 100% | Mutant Dominant Class ---------------- Mutant | -10/Materials Mutant | -10/Mines Mutant | -10/Subcaves Mutant | -8/Recycling Resources | -11 -10 -10 -10 -8 ----------- Run | Yrd Mat Min Sub Rec Matter Collected 584 | 260 27 . 297 . Remotely . | . . . . . Salvage Created 553 | . 92 . 407 54 Parts 42 | . 10 . 28 4 Haulers Intercepted . | . . . . . Recyclers Shooed . | . . . . . Parts Field Recycled . | . . . . . Retrieved Matter . | . . . . . Parts Self-Destructed 4 | . . . 4 . Prevented . | . . . . . Kills | -11 -10 -10 -10 -8 ------- Run | Yrd Mat Min Sub Rec Combat Hostiles Destroyed 18 | . 3 . 14 1 Guns 4 | . 3 . 1 . Cannons 10 | . . . 9 1 AOE 4 | . . . 4 . Classes Destroyed 6 | . 3 . 3 . Turret 1 | . . . 1 . Watcher 1 | . 1 . . . Swarmer 6 | . 2 . 4 . Grunt 1 | . 1 . . . Sentry 2 | . . . 1 1 Subdweller 9 | . . . 9 . Best Kill Streak 6 | . 3 . 6 1 Combat Bots Only 5 | . 3 . 5 1 Max Kills in Single Turn 2 | . 1 . 2 1 Gunslinging . | . . . . . Exploded 2 | . . . 2 . Melee . | . . . . . Uniques/NPCs Destroyed . | . . . . . Combat | -11 -10 -10 -10 -8 -------- Run | Yrd Mat Min Sub Rec Hostile Shots Fired 73 | . 11 . 56 6 Missed 23 | . 2 . 20 1 Damage Taken 716 | . 81 . 562 73 Core 251 | . 37 . 171 43 Absorbed by Shields . | . . . . . Core Remaining (%) 100 | 100 . . . . Volleys Fired 45 | . 10 . 32 3 Largest 2 | . 2 . 2 2 Hottest 113 | . 70 . 113 110 Shots Fired 85 | . 20 . 59 6 Gun 27 | . 20 . 4 3 Cannon 54 | . . . 51 3 Launcher 4 | . . . 4 . Special . | . . . . . Kinetic 44 | . 10 . 31 3 Thermal 41 | . 10 . 28 3 Explosive . | . . . . . Electromagnetic . | . . . . . Robot Hit Streak 9 | . 3 . 9 4 Robot Miss Streak 2 | . 2 . 2 1 Penetration Max . | . . . . . Secondary Targets 1 | . 1 . . . Max Gunslinging Chain 1 | . 1 . . . Shots Hit Robots 47 | . 10 . 33 4 Core Hits 29 | . 6 . 21 2 Critical Kills . | . . . . . Critical Parts Destroyed . | . . . . . Critical Strikes 1 | . . . 1 . Blast 1 | . . . 1 . Melee Attacks . | . . . . . Impact . | . . . . . Slashing . | . . . . . Piercing . | . . . . . Sneak Attacks . | . . . . . Combat Hostiles . | . . . . . Follow-up Attacks . | . . . . . Damage Inflicted 1452 | . 111 . 1245 96 Guns 218 | . 111 . 67 40 Cannons 822 | . . . 766 56 Explosions 412 | . . . 412 . Melee . | . . . . . Ramming . | . . . . . Kinetic 827 | . 35 . 752 40 Thermal 625 | . 76 . 493 56 Explosive . | . . . . . Electromagnetic . | . . . . . Impact . | . . . . . Slashing . | . . . . . Piercing . | . . . . . Highest Corruption . | . . . . . Average Corruption . | . . . . . Corruption Purged . | . . . . . Corruption Blocked . | . . . . . Overload Shots . | . . . . . Overflow Damage 9 | . . . 9 . Projectiles . | . . . . . Explosions 9 | . . . 9 . Melee . | . . . . . Knockbacks 3 | . . . 3 . Impact . | . . . . . Kinetic 2 | . . . 2 . Secondary 1 | . . . 1 . Self-Inflicted Damage 44 | . . . 44 . Shots 1 | . . . 1 . Rammed . | . . . . . Targets Rammed . | . . . . . Kicked . | . . . . . Crushed . | . . . . . Highest Temperature 130 | . 130 . 9 95 Average Temperature 44 | . 58 . 2 53 Received Heat Transfer 192 | . 30 . 144 18 Siege Activations . | . . . . . Martial Activations . | . . . . . Shielding Activations . | . . . . . Robots Disrupted . | . . . . . Combat Hostiles . | . . . . . Robots Corrupted . | . . . . . Combat Hostiles . | . . . . . Parts Fried . | . . . . . Impact Corruptions . | . . . . . Robots Melted . | . . . . . Combat Hostiles . | . . . . . Parts Melted 1 | . . . 1 . Heat Transferred 962 | . 222 . 666 74 Parts Sabotaged . | . . . . . Parts Stolen . | . . . . . Parts Stripped . | . . . . . Power Chain Reactions . | . . . . . Alert | -11 -10 -10 -10 -8 ------- Run | Yrd Mat Min Sub Rec Maximum Alert Level . | . . . . . Low Security (%) 100 | 100 100 100 . 100 Level 1 . | . . . . . Level 2 . | . . . . . Level 3 . | . . . . . Level 4 . | . . . . . Level 5 . | . . . . . High Security . | . . . . . Max Security . | . . . . . Peak Influence 63 | . 60 . . 63 Initial 42 | . . . . 42 Average 13 | . 19 . . 45 Influence Increases 208 | . 67 . 120 21 Destroy 0b10 Robot/C 200 | . 60 . 120 20 Destroy 0b10 Robot/NC 5 | . 5 . . . Destroy Leader 2 | . 2 . . . Destroy Structure 1 | . . . . 1 Influence Decreases 99 | . 67 . 32 . Time Decay 99 | . 67 . 32 . Squads Dispatched . | . . . . . Investigation . | . . . . . Extermination . | . . . . . Reinforcement . | . . . . . Assault . | . . . . . Garrison . | . . . . . Intercept . | . . . . . Searches Triggered . | . . . . . Construction Impeded . | . . . . . Haulers Reinforced . | . . . . . Active Scanning Responses . | . . . . . Cargo Convoy Interrupts . | . . . . . Stealth | -11 -10 -10 -10 -8 --------- Run | Yrd Mat Min Sub Rec Distress Signals 1 | . 1 . . . Communications Jammed . | . . . . . Distress Signals . | . . . . . Times Spotted 23 | . 5 . 16 2 Peak Tracking Total 6 | . 4 . 6 4 Tactical Retreats . | . . . . . Traps | -11 -10 -10 -10 -8 ------- Run | Yrd Mat Min Sub Rec Traps Triggered . | . . . . . Indirectly . | . . . . . Trap Hack Attempts . | . . . . . Triggered . | . . . . . Disarmed . | . . . . . Reprogrammed . | . . . . . Reused . | . . . . . Traps Extracted . | . . . . . Installed . | . . . . . Triggered . | . . . . . Machines | -11 -10 -10 -10 -8 ---------- Run | Yrd Mat Min Sub Rec Machines Disabled 4 | . . . 4 . Max in Single Turn 2 | . . . 2 . Machines Repaired . | . . . . . Machines Dismantled . | . . . . . Machines Sabotaged . | . . . . . Overloaded Fab Kills . | . . . . . Hacking | -11 -10 -10 -10 -8 --------- Run | Yrd Mat Min Sub Rec Machines Accessed 2 | . . . 2 . Terminals . | . . . . . Fabricators . | . . . . . Repair Stations . | . . . . . Recycling Units . | . . . . . Scanalyzers . | . . . . . Garrison Access . | . . . . . Total Hacks 3 | . . . 3 . Successful 3 | . . . 3 . Failed . | . . . . . Catastrophic . | . . . . . Database Lockouts . | . . . . . Manual . | . . . . . Terminals . | . . . . . Fabricators . | . . . . . Repair Stations . | . . . . . Recycling Units . | . . . . . Scanalyzers . | . . . . . Garrison Access . | . . . . . Terminal Hacks 3 | . . . 3 . Record 1 | . . . 1 . Open Door 1 | . . . 1 . Release Object 1 | . . . 1 . Fabricator Hacks . | . . . . . Repair Station Hacks . | . . . . . Recycling Unit Hacks . | . . . . . Scanalyzer . | . . . . . Garrison Access Hacks . | . . . . . Unauthorized Hacks . | . . . . . Terminals . | . . . . . Fabricators . | . . . . . Repair Stations . | . . . . . Recycling Units . | . . . . . Scanalyzers . | . . . . . Garrison Access . | . . . . . Data Cores Recovered . | . . . . . Used . | . . . . . Hacking Detections . | . . . . . Full Trace Events . | . . . . . Feedback Events . | . . . . . Feedback Blocked . | . . . . . Robot Schematics Acquired . | . . . . . Robots Built . | . . . . . Authchips . | . . . . . Time . | . . . . . Total Robot Build Rating . | . . . . . Part Schematics Acquired . | . . . . . Parts Built . | . . . . . Authchips . | . . . . . Time . | . . . . . Total Part Build Rating . | . . . . . Parts Repaired . | . . . . . Time . | . . . . . Parts Recycled . | . . . . . Recycled Matter . | . . . . . Retrieved Matter . | . . . . . Retrieved Components . | . . . . . Parts Scanalyzed . | . . . . . Part Schematics Acquired . | . . . . . Parts Damaged . | . . . . . Bothacking | -11 -10 -10 -10 -8 ------------ Run | Yrd Mat Min Sub Rec Used RIF Installer . | . . . . . Robots Hacked . | . . . . . Non-combat . | . . . . . Combat . | . . . . . Robot Hacks Applied . | . . . . . Relay Couplers Released . | . . . . . Fabnet Peak Effective % . | . . . . . Robots Rewired . | . . . . . Allies Hacked . | . . . . . Hacks Repelled . | . . . . . Allies | -11 -10 -10 -10 -8 -------- Run | Yrd Mat Min Sub Rec Total Allies . | . . . . . Largest Group . | . . . . . Highest-Rated Group . | . . . . . Highest-Rated Ally . | . . . . . Total Orders . | . . . . . Ally Attacks . | . . . . . Total Damage . | . . . . . Kills . | . . . . . Allies Corrupted . | . . . . . Allies Melted . | . . . . . Intel | -11 -10 -10 -10 -8 ------- Run | Yrd Mat Min Sub Rec Active Infowar (turns) 1589 | . 182 57 1343 7 Structural 1589 | . 182 57 1343 7 Robot Analysis Total . | . . . . . Derelict Logs Recovered . | . . . . . Drone Launches . | . . . . . Drone Recoveries . | . . . . . Exploration | -11 -10 -10 -10 -8 ------------- Run | Yrd Mat Min Sub Rec Turns Passed 1665 | 55 203 57 1343 7 Spaces Moved 973 | 48 147 10 768 . Core 2 | 2 . . . . Treads . | . . . . . Legs . | . . . . . Wheels 971 | 46 147 10 768 . Hover . | . . . . . Flight . | . . . . . Fastest Speed 50 | 50 90 135 135 . Average Speed 146 | 87 116 135 155 . Slowest Speed 215 | 90 135 135 215 . Overloaded Moves . | . . . . . Propulsion Burnouts . | . . . . . Robots Hopped . | . . . . . Cave-ins Triggered . | . . . . . Exploration Rate (%) 18 | 4 29 6 49 2 Regions Visited 4 Branch Regions 3 Pre-discovered Areas 1 | . . . 1 . Known Exits Taken . | . . . . . Unknown Exits Taken 4 | 1 1 1 1 . Scrap Searched . | . . . . . Spaces Dug . | . . . . . Terrain Destroyed 64 | . . . 63 1 Melee . | . . . . . Projectile 9 | . . . 8 1 AOE 55 | . . . 55 . Terrain Rammed . | . . . . . Walls Destroyed . | . . . . . Machines Disabled . | . . . . . Actions | -11 -10 -10 -10 -8 --------- Run | Yrd Mat Min Sub Rec Total 1129 | 57 160 53 856 3 Wait 62 | . . 44 18 . Move 969 | 47 146 9 767 . Hop . | . . . . . Pick Up 16 | 4 2 . 10 . Fast Attach 9 | 6 1 . 2 . Attach 1 | . . . 1 . Detach 2 | . . . 2 . Swap 13 | . 1 . 12 . Drop 12 | . . . 12 . Fire 45 | . 10 . 32 3 Melee . | . . . . . Ram . | . . . . . Kick . | . . . . . Crush . | . . . . . Escape Stasis . | . . . . . Rewire . | . . . . . Trap . | . . . . . Miscellaneous . | . . . . . Route ------- -11/Scrapyard -10/Materials -10/Mines -10/Subcaves (discovered 4 exits: [*Mat x2] / [*Rec] / [*Scr]) -8/Recycling History --------- Turn | Location | Event 27 | -11/Scrapyard | Discovered new exit (range 15) 56 | -11/Scrapyard | Entered Materials 248 | -10/Materials | Discovered new exit (range 9) 259 | -10/Materials | Entered Mines 273 | -10/Mines | Discovered new exit (range 5) 308 | -10/Mines | Build established: Mutant 316 | -10/Mines | Entered Subcaves 317 | -10/Subcaves | Approached by a straggling Scientist 328 | -10/Subcaves | Learned location of Zion (-7) 328 | -10/Subcaves | Met a Zionite searching for "candidates" 378 | -10/Subcaves | Shifting Twisted Machinery released Sub. Beam Cannon 380 | -10/Subcaves | Shifting Twisted Machinery released Battle Cannon 400 | -10/Subcaves | Discovered new exit (range 8) 572 | -10/Subcaves | Core integrity fell below 50% 774 | -10/Subcaves | A swath of the cavern ceiling suddenly collapsed 1111 | -10/Subcaves | Scientist uncovered a shortcut to Scraptown 1162 | -10/Subcaves | Discovered new exit (range 5) 1259 | -10/Subcaves | Found SUBCON Basin 1599 | -10/Subcaves | Discovered new exit (range 10) 1610 | -10/Subcaves | Core integrity fell below 20% 1659 | -10/Subcaves | Entered Recycling 1666 | -8/Recycling | Destroyed by P-60 Hacker with Shock Rifle Last Messages --------------- 01607_ Flight Unit fries itself beyond repair. 01607_ S-10 Pest destroyed. 01607_ K5-955(R) destroyed. 01611_ Lgt. Ion Engine fries itself beyond repair. 01611_ Subatomizers dissect the Lgt. Assault Rifle. 01612_ Lgt. Ion Engine fries itself beyond repair. 01616_ Destroyed Autobeam. 01616_ Autobeam Turret destroyed. 01619_ Lgt. Assault Rifle fries itself beyond repair. 01630_ Acquired 47 matter. 01633_ Acquired Sub. Laser. 01635_ Dropped Wheel. 01638_ Dropped Lgt. Treads. 01639_ Acquired Wheel. 01649_ Acquired 8 matter. 01650_ Acquired 4 matter. LOCATION=UNKNOWN GOAL=ESCAPE 01660_ Y-45 Defender springs to life. 01665_ Y-45 Defender destroyed. Map ----- +----------------------------------------------------+ | ??????????????????????????????????? | | ??????????????????????????????????? | | ??????????????????????????????????? | | ??????????????????????????????????? | | ??????????????????????????????????? | | ??????????????????????????????????? | | ??????????????????????????????????? | | ??????????????????????????????????? | | ??????????????????????????????????? | | ??????????????????????????????????? | | ??????????????????????????????????? | | ??????????????????????????????????? | | ??????????????????????????????????? | | ??????????????????????????????????? | | ??????????????????????????????????? | | ??????????????????????????????????? | | ??????????????????????????????????? | | ??????????????????????????????????? | | ??????????????????????????????????? | | ??????????????????????????????????? | | ??????????????????????????????????? | | ?????????????###????## ???????????? | | ???????######### ??""# ???????????? | | ???????######[## Y"# ???????????? | | ???????## =%* p ""# ???????????? | | ???????## @ = ;###???????????? | | ???????## ###????????????? | | ???????##############?????????????? | | ???????##############?????????????? | | ??????????????????????????????????? | | ??????????????????????????????????? | | ??????????????????????????????????? | | ??????????????????????????????????? | | ??????????????????????????????????? | | | | | | | | | | | | | | | | | | | | | | | | | | | | | | | | | +----------------------------------------------------+ Best States ------------- Heat Dissipation 25 Energy Generation 10 Energy Capacity 200 Matter Stores 300 Matter Capacity 300 Sight Range 16 Terrain Scan Density 10 Evasion (%) 42 Recoil Reduction 1 Item Schematics ----------------- None Robot Schematics ------------------ None Fabricated ------------ Nothing Repaired ---------- Nothing Alien Tech Used ----------------- None Achievements -------------- None Challenges ------------ None Game ------ Seed FlightSmartbombExpander Manual? 1 Play Time 00:08:47 Cumulative 563.4 hours Start 2024.11.17 @ 03:33:02 End 2024.11.17 @ 03:41:46 Sessions 1 Manual Loads 0 Difficulty Rogue Special Mode None Game No. 216 Rogue 211 Adventurer 4 Explorer 1 Win Type - Total 9 Types 6/1/0/1/0/1/0/0/0 Lore% 90 Gallery% 92 Achievement% 87 Wizard Run 0 Options --------- Layout 0 ASCII 0 Keyboard 0 Movement Numpad Keybinds 0 Fullscreen 2 Font 18/CogNarrow Map View 76x50 Zoom Use 0% Tactical HUD 1 Map Filters NONE Filters NONE Steam 1 RUN: ef379c02-281e-41be-818b-2c7105f35532